lending/lending_fUSD_20250406
["ID","MTS","AMOUNT","RATE_DAILY","PERIOD"]
[357286425,1743978789889,-500.0,0.00053698,120]
[357286426,1743978789937,-500.0,0.00053698,120]
[357286427,1743978789987,-500.0,0.00053698,120]
[357286428,1743978790035,-500.0,0.00053698,120]
[357286429,1743978790082,-500.0,0.00053698,120]
[357286430,1743978790128,-724.57,0.00053698,120]
[357286431,1743978790175,-500.0,0.00053698,120]
[357286432,1743978790221,-500.0,0.00053698,120]
[357286433,1743978790273,-500.0,0.00053698,120]
[357286434,1743978790503,-500.0,0.00053698,120]
[357286435,1743978790550,-540.32134455,0.00053698,120]
[357286436,1743978790597,-617.55510797,0.00053698,120]
[357286437,1743978790643,-956.23,0.00053698,120]
[357286438,1743978790688,-500.0,0.00053698,120]
[357286439,1743978790734,-371.827426,0.00053698,120]
[357286440,1743978790779,-500.0,0.00053698,120]
[357286441,1743978790822,-535.87398828,0.00053698,120]
[357286442,1743978790866,-500.0,0.00053698,120]
[357286443,1743978790910,-1083.24,0.00053698,120]
[357286444,1743978790955,-371.827426,0.00053698,120]
[357286445,1743978791002,-500.0,0.00053698,120]
[357286446,1743978791053,-500.0,0.00053698,120]
[357286447,1743978791100,-500.0,0.00053698,120]
[357286448,1743978791147,-3248.21,0.00053698,120]
[357286449,1743978791195,-424.050373,0.00053698,120]
[357286450,1743978791243,-500.0,0.00053698,120]
[357286451,1743978791292,-500.0,0.00053698,120]
[357286452,1743978791338,-500.0,0.00053698,120]
[357286453,1743978791384,-500.0,0.00053698,120]
[357286454,1743978791432,-1043.57303939,0.00053698,120]
[357286455,1743978791479,-761.26,0.00053698,120]
[357286456,1743978791532,-1106.12,0.00053698,120]
[357286457,1743978791583,-155.379504,0.00053698,120]
[357286458,1743978791636,-424.050373,0.00053698,120]
[357286459,1743978791689,-500.0,0.00053698,120]
[357286460,1743978791744,-557.75,0.00053698,120]
[357286461,1743978791797,-524.47660666,0.00053698,120]
[357286462,1743978791852,-500.0,0.00053698,120]
[357286463,1743978791906,-5787.768757,0.00053698,120]
[357286464,1743978791959,-500.0,0.00053698,120]
[357286465,1743978792010,-835.89,0.00053698,120]
[357286466,1743978792061,-500.0,0.00053698,120]
[357286467,1743978792110,-500.0,0.00053698,120]
[357286468,1743978792157,-500.0,0.00053698,120]
[357286469,1743978792204,-500.0,0.00053698,120]
[357286470,1743978792251,-500.0,0.00053698,120]
[357286471,1743978792301,-500.0,0.00053698,120]
[357286472,1743978792349,-500.0,0.00053698,120]
[357286473,1743978792397,-579.51988457,0.00053698,120]
[357286474,1743978792444,-500.0,0.00053698,120]
[357286475,1743978792495,-500.0,0.00053698,120]
[357286476,1743978792543,-500.0,0.00053698,120]
[357286477,1743978792589,-500.0,0.00053698,120]
[357286478,1743978792636,-500.0,0.00053698,120]
[357286479,1743978792684,-500.0,0.00053698,120]
[357286480,1743978792733,-500.0,0.00053698,120]
[357286481,1743978792778,-500.0,0.00053698,120]
[357286482,1743978792824,-500.0,0.00053698,120]
[357286483,1743978792870,-500.0,0.00053698,120]
[357286484,1743978792917,-500.0,0.00053698,120]
[357286485,1743978792963,-500.0,0.00053698,120]
[357286486,1743978793009,-500.0,0.00053698,120]
[357286487,1743978793058,-237.801962,0.00053698,120]
[357286488,1743978793106,-742.32,0.00053698,120]
[357286489,1743978793155,-151.0,0.00053698,120]
[357286490,1743978793203,-500.0,0.00053698,120]
[357286491,1743978793253,-151.0,0.00053698,120]
[357286492,1743978793303,-237.801962,0.00053698,120]
[357286493,1743978793352,-500.0,0.00053698,120]
[357286494,1743978793400,-500.0,0.00053698,120]
[357286495,1743978793444,-500.0,0.00053698,120]
[357286496,1743978793490,-594.48406534,0.00053698,120]
[357286497,1743978793535,-500.0,0.00053698,120]
[357286498,1743978793577,-500.0,0.00053698,120]
[357286499,1743978793619,-500.0,0.00053698,120]
[357286500,1743978793661,-500.0,0.00053698,120]
[357286501,1743978793705,-500.0,0.00053698,120]
[357286502,1743978793748,-500.0,0.00053698,120]
[357286503,1743978793792,-500.0,0.00053698,120]
[357286504,1743978793834,-164.39978823,0.00053698,120]
[357286505,1743978793877,-500.0,0.00053698,120]
[357286506,1743978793921,-604.29044014,0.00053698,120]
[357286507,1743978793966,-500.0,0.00053698,120]
[357286508,1743978794012,-500.0,0.00053698,120]
[357286509,1743978794058,-500.0,0.00053698,120]
[357286510,1743978794102,-183.1683359,0.00053698,120]
[357286511,1743978794148,-500.0,0.00053698,120]
[357286512,1743978794192,-474.47108364,0.00053698,120]
[357286513,1743978794239,-500.0,0.00053698,120]
[357286514,1743978794285,-500.0,0.00053698,120]
[357286515,1743978794332,-500.0,0.00053698,120]
[357286516,1743978794379,-500.0,0.00053698,120]
[357286517,1743978794425,-500.0,0.00053698,120]
[357286518,1743978794473,-533.62255003,0.00053698,120]
[357286519,1743978794525,-500.0,0.00053698,120]
[357286520,1743978794573,-500.0,0.00053698,120]
[357286521,1743978794619,-500.0,0.00053698,120]
[357286522,1743978794667,-884.942523,0.00053698,120]
[357286523,1743978794715,-500.0,0.00053698,120]
[357286524,1743978794761,-500.0,0.00053698,120]
[357286525,1743978794807,-497.45225611,0.00053698,120]
[357286526,1743978794853,-538.34438933,0.00053698,120]
[357286527,1743978794900,-159.9219746,0.00053698,120]
[357286528,1743978794948,-500.0,0.00053698,120]
[357286529,1743978794998,-500.0,0.00053698,120]
[357286530,1743978795050,-500.0,0.00053698,120]
[357286531,1743978795100,-500.0,0.00053698,120]
[357286532,1743978795151,-500.0,0.00053698,120]
[357286533,1743978795200,-500.0,0.00053698,120]
[357286534,1743978795249,-404.214184,0.00053698,120]
[357286535,1743978795298,-500.0,0.00053698,120]
[357286536,1743978795347,-500.0,0.00053698,120]
[357286537,1743978795396,-404.214184,0.00053698,120]
[357286538,1743978795443,-159.18607223,0.00053698,120]
[357286539,1743978795664,-500.0,0.00053698,120]
[357286540,1743978795714,-229.30336822,0.00053698,120]
[357286541,1743978795762,-500.0,0.00053698,120]
[357286542,1743978795813,-182.77271243,0.00053698,120]
[357286543,1743978795863,-500.0,0.00053698,120]
[357286544,1743978795913,-2103.0,0.00053698,120]
[357286545,1743978795960,-500.0,0.00053698,120]
[357286546,1743978796007,-500.0,0.00053698,30]
[357286547,1743978796056,-500.0,0.00053698,120]
[357286548,1743978796103,-500.0,0.00053698,120]
[357286549,1743978796152,-500.0,0.00053698,120]
[357286550,1743978796199,-556.16,0.00053698,120]
[357286551,1743978796249,-817.93,0.00053698,120]
[357286552,1743978796300,-981.19,0.00053698,120]
[357286553,1743978796351,-500.0,0.00053698,120]
[357286554,1743978796400,-151.0,0.00053698,120]
[357286555,1743978796449,-500.0,0.00053698,120]
[357286556,1743978796498,-290.443883,0.00053698,120]
[357286557,1743978796549,-500.0,0.00053698,120]
[357286558,1743978796599,-500.0,0.00053698,120]
[357286559,1743978796649,-500.0,0.00053698,120]
[357286560,1743978796702,-490.6441329,0.00053698,120]
[357286561,1743978796754,-500.0,0.00053698,120]
[357286562,1743978796804,-500.0,0.00053698,120]
[357286563,1743978796854,-500.0,0.00053698,120]
[357286564,1743978796906,-579.17569255,0.00053698,120]
[357286565,1743978796962,-500.0,0.00053698,120]
[357286566,1743978797014,-500.0,0.00053698,120]
[357286567,1743978797067,-643.99,0.00053698,120]
[357286568,1743978797118,-500.0,0.00053698,120]
[357286569,1743978797168,-500.0,0.00053698,120]
[357286570,1743978797216,-1336.58,0.00053698,120]
[357286571,1743978797264,-1026.057764,0.00053698,120]
[357286572,1743978797311,-1026.057764,0.00053698,120]
[357286573,1743978797358,-500.0,0.00053698,120]
[357286574,1743978797404,-723.14,0.00053698,120]
[357286575,1743978797449,-1026.057764,0.00053698,120]
[357286576,1743978797498,-1026.057764,0.00053698,120]
[357286577,1743978797545,-500.0,0.00053698,120]
[357286578,1743978797591,-500.0,0.00053698,120]
[357286579,1743978797637,-649.77,0.00053698,120]
[357286580,1743978797686,-500.0,0.00053698,120]
[357286581,1743978797742,-872.92,0.00053698,120]
[357286582,1743978797796,-594.39475488,0.00053698,120]
[357286583,1743978797851,-500.0,0.00053698,120]
[357286584,1743978797905,-1008.1,0.00053698,120]
[357286585,1743978797953,-551.92054697,0.00053698,60]
[357286586,1743978798003,-500.0,0.00053698,120]
[357286587,1743978798048,-500.0,0.00053698,120]
[357286588,1743978798095,-500.0,0.00053698,120]
[357286589,1743978798141,-500.0,0.00053698,120]
[357286590,1743978798188,-500.0,0.00053698,120]
[357286591,1743978798233,-500.0,0.00053698,120]
[357286592,1743978798280,-500.0,0.00053698,120]
[357286593,1743978798326,-510.66336367,0.00053698,120]
[357286594,1743978798370,-500.0,0.00053698,120]
[357286595,1743978798415,-510.7,0.00053698,120]
[357286596,1743978798456,-628.71,0.00053698,120]
[357286597,1743978798499,-500.0,0.00053698,120]
[357286598,1743978798541,-515.63,0.00053698,120]
[357286599,1743978798580,-500.0,0.00053698,120]
[357286600,1743978798619,-500.0,0.00053698,120]
[357286601,1743978798660,-500.0,0.00053698,120]
[357286602,1743978798701,-500.0,0.00053698,120]
[357286603,1743978798745,-500.0,0.00053698,120]
[357286604,1743978798787,-500.0,0.00053698,120]
[357286605,1743978798827,-500.0,0.00053698,120]
[357286606,1743978798870,-600.64,0.00053698,120]
[357286607,1743978798914,-391.12473518,0.00053698,120]
[357286608,1743978798959,-829.32,0.00053698,120]
[357286609,1743978799004,-500.0,0.00053698,120]
[357286610,1743978799048,-500.0,0.00053698,120]
[357286611,1743978799096,-500.0,0.00053698,120]
[357286612,1743978799141,-500.0,0.00053698,120]
[357286613,1743978799186,-1030.75,0.00053698,120]
[357286614,1743978799230,-500.0,0.00053698,120]
[357286615,1743978799276,-500.0,0.00053698,120]
[357286616,1743978799319,-500.0,0.00053698,120]
[357286617,1743978799359,-715.47,0.00053698,120]
[357286618,1743978799400,-500.0,0.00053698,120]
[357286619,1743978799450,-500.0,0.00053698,120]
[357286620,1743978799501,-500.0,0.00053698,120]
[357286621,1743978799547,-500.0,0.00053698,120]
[357286622,1743978799587,-500.0,0.00053698,120]
[357286623,1743978799626,-500.0,0.00053698,120]
[357286624,1743978799666,-520.98,0.00053698,120]
[357286625,1743978799709,-500.0,0.00053698,120]
[357286626,1743978799753,-500.0,0.00053698,120]
[357286627,1743978799795,-223.637406,0.00053698,120]
[357286628,1743978799839,-500.0,0.00053698,120]
[357286629,1743978799882,-223.637406,0.00053698,120]
[357286630,1743978799928,-500.0,0.00053698,120]
[357286631,1743978799973,-500.0,0.00053698,120]
[357286632,1743978800026,-500.0,0.00053698,120]
[357286633,1743978800071,-737.01,0.00053698,120]
[357286634,1743978800116,-500.0,0.00053698,120]
[357286635,1743978800160,-500.0,0.00053698,120]
[357286636,1743978800204,-223.637406,0.00053698,120]
[357286637,1743978800249,-764.96,0.00053698,120]
[357286638,1743978800296,-223.637406,0.00053698,120]
[357286639,1743978800339,-500.0,0.00053698,120]
[357286640,1743978800388,-1622.16,0.00053698,120]
[357286641,1743978800434,-500.0,0.00053698,120]
[357286642,1743978800477,-500.0,0.00053698,120]
[357286643,1743978800704,-500.0,0.00053698,120]
[357286644,1743978800752,-500.0,0.00053698,120]
[357286645,1743978800799,-500.0,0.00053698,120]
[357286646,1743978800842,-500.0,0.00053698,120]
[357286647,1743978800887,-689.93,0.00053698,120]
[357286648,1743978800930,-500.0,0.00053698,120]
[357286649,1743978800975,-329.27507924,0.00053698,120]
[357286650,1743978801019,-500.0,0.00053698,120]
[357286651,1743978801064,-1064.76,0.00053698,120]
[357286652,1743978801109,-500.0,0.00053698,120]
[357286653,1743978801154,-500.0,0.00053698,120]
[357286654,1743978801202,-730.54,0.00053698,120]
[357286655,1743978801248,-500.0,0.00053698,120]
[357286656,1743978801295,-500.0,0.00053698,120]
[357286657,1743978801342,-500.0,0.00053698,120]
[357286658,1743978801391,-500.0,0.00053698,120]
[357286659,1743978801441,-318.79002,0.00053698,120]
[357286660,1743978801498,-500.0,0.00053698,120]
[357286661,1743978801550,-722.25,0.00053698,120]
[357286662,1743978801613,-318.79002,0.00053698,120]
[357286663,1743978801666,-500.0,0.00053698,120]
[357286664,1743978801714,-500.0,0.00053698,120]
[357286665,1743978801763,-500.0,0.00053698,120]
[357286666,1743978801812,-500.0,0.00053698,120]
[357286667,1743978801858,-515.3324577,0.00053698,120]
[357286668,1743978801905,-318.79002,0.00053698,120]
[357286669,1743978801951,-318.79002,0.00053698,120]
[357286670,1743978802000,-574.44614813,0.00053698,120]
[357286671,1743978802048,-500.0,0.00053698,120]
[357286672,1743978802095,-500.0,0.00053698,120]
[357286673,1743978802145,-500.0,0.00053698,120]
[357286674,1743978802194,-500.0,0.00053698,120]
[357286675,1743978802241,-592.00269134,0.00053698,120]
[357286676,1743978802289,-151.0,0.00053698,120]
[357286677,1743978802334,-430.25111516,0.00053698,120]
[357286678,1743978802378,-615.43465517,0.00053698,120]
[357286679,1743978802423,-279.937283,0.00053698,120]
[357286680,1743978802474,-847.16,0.00053698,120]
[357286681,1743978802526,-500.0,0.00053698,120]
[357286682,1743978802575,-500.0,0.00053698,120]
[357286683,1743978802629,-500.0,0.00053698,120]
[357286684,1743978802682,-684.69,0.00053698,120]
[357286685,1743978802731,-500.0,0.00053698,120]
[357286686,1743978802780,-500.0,0.00053698,120]
[357286687,1743978802829,-500.6904622,0.00053698,120]
[357286688,1743978802882,-759.9,0.00053698,120]
[357286689,1743978802936,-500.0,0.00053698,120]
[357286690,1743978802986,-500.0,0.00053698,120]
[357286691,1743978803041,-500.0,0.00053698,120]
[357286692,1743978803092,-1057.85,0.00053698,120]
[357286693,1743978803141,-864.94,0.00053698,120]
[357286694,1743978803187,-315.313957,0.00053698,120]
[357286695,1743978803235,-315.313957,0.00053698,120]
[357286696,1743978803283,-500.0,0.00053698,120]
[357286697,1743978803329,-500.0,0.00053698,120]
[357286698,1743978803373,-500.0,0.00053698,120]
[357286699,1743978803418,-500.0,0.00053698,120]
[357286700,1743978803461,-272.07789,0.00053698,120]
[357286701,1743978803505,-500.0,0.00053698,120]
[357286702,1743978803550,-2231.7,0.00053698,120]
[357286703,1743978803596,-315.313957,0.00053698,120]
[357286704,1743978803644,-500.0,0.00053698,120]
[357286705,1743978803697,-500.0,0.00053698,120]
[357286706,1743978803742,-315.313957,0.00053698,120]
[357286707,1743978803789,-272.07789,0.00053698,120]
[357286708,1743978803835,-500.0,0.00053698,120]
[357286709,1743978803881,-500.0,0.00053698,120]
[357286710,1743978803927,-561.00259177,0.00053698,120]
[357286711,1743978803975,-500.0,0.00053698,120]
[357286712,1743978804019,-500.0,0.00053698,120]
[357286713,1743978804064,-1379.87,0.00053698,120]
[357286714,1743978804108,-816.56,0.00053698,120]
[357286715,1743978804151,-547.12,0.00053698,120]
[357286716,1743978804195,-2290.649634,0.00053698,120]
[357286717,1743978804238,-500.0,0.00053698,120]
[357286718,1743978804281,-500.0,0.00053698,120]
[357286719,1743978804322,-2290.649634,0.00053698,120]
[357286720,1743978804365,-500.0,0.00053698,120]
[357286721,1743978804410,-500.0,0.00053698,120]
[357286722,1743978804455,-500.0,0.00053698,120]
[357286723,1743978804501,-542.92,0.00053698,120]
[357286724,1743978804545,-500.0,0.00053698,120]
[357286725,1743978804589,-500.0,0.00053698,120]
[357286726,1743978804634,-500.0,0.00053698,120]
[357286727,1743978804682,-500.0,0.00053698,120]
[357286728,1743978804728,-500.0,0.00053698,120]
[357286729,1743978804774,-784.97,0.00053698,120]
[357286730,1743978804818,-500.0,0.00053698,120]
[357286731,1743978804863,-500.0,0.00053698,120]
[357286732,1743978804908,-500.0,0.00053698,120]
[357286733,1743978804953,-500.0,0.00053698,120]
[357286734,1743978805003,-500.0,0.00053698,120]
[357286735,1743978805047,-500.0,0.00053698,120]
[357286736,1743978805093,-500.0,0.00053698,120]
[357286737,1743978805136,-17244.18,0.00053698,120]
[357286738,1743978805179,-500.0,0.00053698,120]
[357286739,1743978805222,-500.0,0.00053698,120]
[357286740,1743978805266,-500.0,0.00053698,120]
[357286741,1743978805313,-845.19,0.00053698,120]
[357286742,1743978805359,-526.81,0.00053698,120]
[357286743,1743978805404,-500.0,0.00053698,120]
[357286744,1743978805447,-500.0,0.00053698,120]
[357286745,1743978805488,-500.0,0.00053698,120]
[357286746,1743978805530,-500.0,0.00053698,120]
[357286747,1743978805803,-500.0,0.00053698,120]
[357286748,1743978805848,-500.0,0.00053698,120]
[357286749,1743978805893,-500.0,0.00053698,120]
[357286750,1743978805937,-574.56,0.00053698,120]
[357286751,1743978805983,-500.0,0.00053698,120]
[357286752,1743978806030,-500.0,0.00053698,120]
[357286753,1743978806075,-500.0,0.00053698,120]
[357286754,1743978806122,-500.0,0.00053698,120]
[357286755,1743978806168,-500.0,0.00053698,120]
[357286756,1743978806213,-698.52,0.00053698,120]
[357286757,1743978806260,-500.0,0.00053698,120]
[357286758,1743978806307,-1324.2,0.00053698,120]
[357286759,1743978806353,-500.0,0.00053698,120]
[357286760,1743978806398,-1203.18,0.00053698,120]
[357286761,1743978806443,-539.75,0.00053698,120]
[357286762,1743978806489,-519.26117807,0.00053698,120]
[357286763,1743978806537,-846.65,0.00053698,120]
[357286764,1743978806581,-500.0,0.00053698,120]
[357286765,1743978806623,-500.0,0.00053698,120]
[357286766,1743978806668,-500.0,0.00053698,120]
[357286767,1743978806713,-626.19,0.00053698,120]
[357286768,1743978806761,-725.86,0.00053698,120]
[357286769,1743978806806,-500.0,0.00053698,120]
[357286770,1743978806849,-500.0,0.00053698,120]
[357286771,1743978806897,-204.69284999,0.00053698,120]
[357286772,1743978806945,-500.0,0.00053698,120]
[357286773,1743978806994,-775.01,0.00053698,100]
[357286774,1743978807047,-500.0,0.00053698,120]
[357286775,1743978807097,-500.0,0.00053698,120]
[357286776,1743978807146,-1128.03,0.00053698,120]
[357286777,1743978807192,-151.0,0.00053698,120]
[357286778,1743978807239,-500.0,0.00053698,120]
[357286779,1743978807287,-1819.63,0.00053698,120]
[357286780,1743978807334,-500.0,0.00053698,120]
[357286781,1743978807377,-500.0,0.00053698,120]
[357286782,1743978807423,-500.0,0.00053698,120]
[357286783,1743978807467,-500.0,0.00053698,120]
[357286784,1743978807515,-734.92,0.00053698,120]
[357286785,1743978807560,-1594.02,0.00053698,120]
[357286786,1743978807603,-500.0,0.00053698,120]
[357286787,1743978807647,-500.0,0.00053698,120]
[357286788,1743978807693,-1069.98,0.00053698,120]
[357286789,1743978807740,-500.0,0.00053698,120]
[357286790,1743978807789,-500.0,0.00053698,120]
[357286791,1743978807837,-500.0,0.00053698,120]
[357286792,1743978807883,-500.0,0.00053698,120]
[357286793,1743978807933,-2197.67,0.00053698,120]
[357286794,1743978807979,-520.70894489,0.00053698,120]
[357286795,1743978808027,-500.0,0.00053698,120]
[357286796,1743978808074,-500.0,0.00053698,120]
[357286797,1743978808120,-500.0,0.00053698,120]
[357286798,1743978808168,-365.54186431,0.00053698,120]
[357286799,1743978808216,-2822.5,0.00053698,120]
[357286800,1743978808266,-500.0,0.00053698,120]
[357286801,1743978808313,-722.87,0.00053698,120]
[357286802,1743978808360,-500.0,0.00053698,120]
[357286803,1743978808407,-500.0,0.00053698,120]
[357286804,1743978808451,-500.0,0.00053698,120]
[357286805,1743978808496,-952.93,0.00053698,120]
[357286806,1743978808542,-500.0,0.00053698,120]
[357286807,1743978808585,-500.0,0.00053698,120]
[357286808,1743978808629,-500.0,0.00053698,120]
[357286809,1743978808673,-500.0,0.00053698,120]
[357286810,1743978808719,-500.0,0.00053698,120]
[357286811,1743978808766,-500.0,0.00053698,120]
[357286812,1743978808811,-500.0,0.00053698,120]
[357286813,1743978808856,-500.0,0.00053698,120]
[357286814,1743978808903,-500.0,0.00053698,120]
[357286815,1743978808948,-1778.48,0.00053698,120]
[357286816,1743978808994,-500.0,0.00053698,120]
[357286817,1743978809044,-500.0,0.00053698,120]
[357286818,1743978809087,-500.0,0.00053698,120]
[357286819,1743978809133,-500.0,0.00053698,120]
[357286820,1743978809177,-500.0,0.00053698,120]
[357286821,1743978809223,-500.0,0.00053698,120]
[357286822,1743978809266,-500.0,0.00053698,120]
[357286823,1743978809312,-500.0,0.00053698,120]
[357286824,1743978809357,-2496.98201791,0.00053904,120]
[357286825,1743978809400,-500.0,0.00053972,32]
[357286826,1743978809444,-277.0,0.0005398,120]
[357286827,1743978809491,-277.0,0.0005399,120]
[357286828,1743978809540,-1594.2457136,0.00054,120]
[357286829,1743978809583,-3152.04,0.00054,120]
[357286830,1743978809630,-600.0,0.00054,120]
[357286831,1743978809677,-878932.15,0.00054,120]
[357286832,1743978809723,-151.0,0.00054,120]
[357286833,1743978809768,-214.952067,0.00054,120]
[357286834,1743978809812,-151.0,0.00054,120]
[357286835,1743978809853,-151.0,0.00054,120]
[357286836,1743978809898,-224.187708,0.00054,120]
[357286837,1743978809942,-622.515308,0.00054,120]
[357286838,1743978809987,-622.515308,0.00054,120]
[357286839,1743978810031,-151.0,0.00054,120]
[357286840,1743978810076,-151.0,0.00054,120]
[357286841,1743978810124,-179.359833,0.00054,120]
[357286842,1743978810175,-179.359833,0.00054,120]
[357286843,1743978810225,-318.020713,0.00054,120]
[357286844,1743978810274,-318.020713,0.00054,120]
[357286845,1743978810323,-575.549479,0.00054,120]
[357286846,1743978810371,-575.549479,0.00054,120]
[357286847,1743978810417,-305.45122,0.00054,120]
[357286848,1743978810464,-305.45122,0.00054,120]
[357286849,1743978810511,-151.0,0.00054,120]
[357286850,1743978810554,-246.023368,0.00054,120]
[357286851,1743978810743,-246.023368,0.00054,120]
[357286852,1743978810795,-151.0,0.00054,120]
[357286853,1743978810841,-579.314406,0.00054,120]
[357286854,1743978810888,-151.0,0.00054,120]
[357286855,1743978810935,-579.314406,0.00054,120]
[357286856,1743978810982,-151.0,0.00054,120]
[357286857,1743978811027,-235.731569,0.00054,120]
[357286858,1743978811074,-235.731569,0.00054,120]
[357286859,1743978811121,-151.0,0.00054,90]
[357286860,1743978811168,-558.368642,0.00054,120]
[357286861,1743978811215,-558.368642,0.00054,120]
[357286862,1743978811261,-159.582525,0.00054,120]
[357286863,1743978811306,-159.582525,0.00054,120]
[357286864,1743978811353,-234.036517,0.00054,120]
[357286865,1743978811398,-234.036517,0.00054,120]
[357286866,1743978811447,-151.0,0.00054,120]
[357286867,1743978811497,-284.259757,0.00054,120]
[357286868,1743978811546,-284.259757,0.00054,120]
[357286869,1743978811593,-160.539034,0.00054,120]
[357286870,1743978811640,-160.539034,0.00054,120]
[357286871,1743978811686,-204.871619,0.00054,120]
[357286872,1743978811732,-897.665913,0.00054,120]
[357286873,1743978811779,-204.871619,0.00054,120]
[357286874,1743978811824,-897.665913,0.00054,120]
[357286875,1743978811870,-291.533739,0.00054,120]
[357286876,1743978811913,-291.533739,0.00054,120]
[357286877,1743978811957,-151.0,0.00054,120]
[357286878,1743978811999,-371.827426,0.00054,120]
[357286879,1743978812049,-371.827426,0.00054,120]
[357286880,1743978812093,-424.050373,0.00054,120]
[357286881,1743978812136,-424.050373,0.00054,120]
[357286882,1743978812180,-237.801962,0.00054,120]
[357286883,1743978812226,-151.0,0.00054,120]
[357286884,1743978812272,-151.0,0.00054,120]
[357286885,1743978812316,-237.801962,0.00054,120]
[357286886,1743978812359,-884.942523,0.00054,120]
[357286887,1743978812401,-404.214184,0.00054,120]
[357286888,1743978812442,-404.214184,0.00054,120]
[357286889,1743978812486,-151.0,0.00054,120]
[357286890,1743978812532,-1026.057764,0.00054,120]
[357286891,1743978812576,-1026.057764,0.00054,120]
[357286892,1743978812619,-223.637406,0.00054,120]
[357286893,1743978812665,-223.637406,0.00054,120]
[357286894,1743978812711,-318.79002,0.00054,120]
[357286895,1743978812757,-318.79002,0.00054,120]
[357286896,1743978812807,-315.313957,0.00054,120]
[357286897,1743978812853,-272.07789,0.00054,120]
[357286898,1743978812899,-315.313957,0.00054,120]
[357286899,1743978812942,-272.07789,0.00054,120]
[357286900,1743978812989,-2290.649634,0.00054,120]
[357286901,1743978813036,-2290.649634,0.00054,120]
[357286902,1743978813083,-151.0,0.00054,120]
[357286903,1743978813130,-1408.56704463,0.00054077,120]
[357286904,1743978813177,-152.9,0.00054161,120]
[357286905,1743978813225,-333.65,0.00054246,120]
[357286906,1743978813268,-599.129767,0.00054246,120]
[357286907,1743978813313,-175.588719,0.00054246,120]
[357286908,1743978813357,-151.0,0.00054246,120]
[357286909,1743978813400,-163.461916,0.00054246,120]
[357286910,1743978813444,-163.461916,0.00054246,120]
[357286911,1743978813489,-151.0,0.00054246,120]
[357286912,1743978813532,-305.467257,0.00054246,120]
[357286913,1743978813573,-305.467257,0.00054246,120]
[357286914,1743978813615,-2084.402863,0.00054246,120]
[357286915,1743978813656,-151.0,0.00054246,120]
[357286916,1743978813698,-151.0,0.00054246,120]
[357286917,1743978813741,-151.0,0.00054246,120]
[357286918,1743978813781,-222.510449,0.00054246,120]
[357286919,1743978813823,-222.510449,0.00054246,120]
[357286920,1743978813865,-151.0,0.00054246,120]
[357286921,1743978813911,-270.168469,0.00054246,120]
[357286922,1743978813956,-270.168469,0.00054246,120]
[357286923,1743978814002,-151.0,0.00054246,120]
[357286924,1743978814049,-151.0,0.00054246,120]